fUST/lending_fUST_20240803
["ID","MTS","AMOUNT","RATE_DAILY","PERIOD"]
[334023276,1722683459646,-314.11230416,0.00015068,2]
[334023277,1722683459657,-500.0,0.00015068,2]
[334023278,1722683459667,-627.42,0.00015068,2]
[334023279,1722683459679,-1007.33,0.00015068,2]
[334023280,1722683459688,-1050.47,0.00015068,2]
[334023281,1722683459698,-1665.05,0.00015068,2]
[334023282,1722683459709,-901.36,0.00015068,2]
[334023283,1722683459720,-500.0,0.00015068,2]
[334023284,1722683459730,-870.97,0.00015068,2]
[334023285,1722683459741,-500.0,0.00015068,2]
[334023286,1722683459753,-558.86,0.00015068,2]
[334023287,1722683459764,-503.40408378,0.00015068,2]
[334023288,1722683459776,-1900.02,0.00015068,2]
[334023289,1722683459787,-500.0,0.00015068,2]
[334023290,1722683459796,-500.0,0.00015068,2]
[334023291,1722683459807,-752.95,0.00015068,2]
[334023292,1722683459817,-4371.09,0.00015068,2]
[334023293,1722683459828,-3176.40444436,0.00015068,2]
[334023294,1722683460075,-2872.05555564,0.00015068,2]
[334023295,1722683460086,-500.0,0.00015068,2]
[334023296,1722683460097,-642.41,0.00015068,2]
[334023297,1722683460108,-790.57,0.00015068,2]
[334023298,1722683460117,-723.14,0.00015068,2]
[334023299,1722683460130,-456.62444436,0.00015068,2]
[334023300,1722683460631,523.02359735,9.999e-05,2]
[334023301,1722683576827,523.02359735,9.999e-05,2]
[334023302,1722683694820,238.94347947,9.999e-05,2]
[334023303,1722683725139,266.65181036,0.0001,2]
[334023304,1722683733149,266.65181036,0.0001,2]
[334023306,1722684309021,8998.26676697,0.00027,120]
[334023374,1722684632160,-195.70656665,0.0001202,2]
[334023376,1722684632171,-161.279718,0.00012314,2]
[334023378,1722684632182,-161.279718,0.00012528,2]
[334023380,1722684632192,-161.279718,0.00012742,2]
[334023382,1722684632203,-161.279718,0.00012955,2]
[334023384,1722684632212,-168.909709,0.00012986,2]
[334023386,1722684632222,-300.0,0.00012989,2]
[334023388,1722684632232,-280.93629568,0.0001299,2]
[334023417,1722684638172,-333.24854679,0.0001299,2]
[334023418,1722684638955,-1573.2413,0.0001299,2]
[334023476,1722684640269,-7488.84668062,0.0001299,2]
[334023478,1722684640279,-816.16582707,0.00013,2]
[334023480,1722684640289,-269.63517677,0.00013,2]
[334023482,1722684640299,-336.04335091,0.000132,2]
[334023484,1722684640309,-2337.37329914,0.00013586,2]
[334023487,1722684640323,-1942.64231798,0.00013598,2]
[334023488,1722684640334,-766.17,0.0001365,2]
[334023490,1722684640343,-1942.64231795,0.00013667,2]
[334023492,1722684640353,-27855.7246288,0.00013678,2]
[334023494,1722684640363,-36651.28809458,0.00013686,2]
[334023496,1722684640373,-2755.58095108,0.00013688,2]
[334023499,1722684640385,-10261.4117607,0.00013688,2]
[334023501,1722684640401,-329.7518327,0.00013688,2]
[334023503,1722684640414,-14629.8283399,0.00013688,2]
[334023506,1722684640427,-82453.31818971,0.00013688,2]
[334023587,1722684643068,-764.76670726,0.00013688,2]
[334023619,1722684646256,-349.08898953,0.00013688,2]
[334023620,1722684646266,-500.0,0.00013697,2]
[334023621,1722684646276,-500.0,0.00013697,2]
[334023622,1722684646286,-501.67545078,0.00013698,2]
[334023623,1722684646298,-512.4678493,0.00013698,2]
[334023624,1722684646307,-443.69883533,0.00013698,2]
[334023625,1722684646453,-67.09117258,0.00013698,2]
[334023626,1722684646463,-500.0,0.00013698,2]
[334023627,1722684646472,-500.0,0.00013698,2]
[334023628,1722684646482,-313.55818262,0.00013698,2]
[334023629,1722684646494,-192.32019875,0.00013698,2]
[334023630,1722684646504,-503.0087459,0.00013698,2]
[334023631,1722684646514,-298.29774428,0.00013698,2]
[334023632,1722684646524,-184.18705617,0.00013698,2]
[334023633,1722684646533,-503.4325015,0.00013698,2]
[334023634,1722684646543,-500.0,0.00013698,2]
[334023635,1722684646552,-500.0,0.00013698,2]
[334023636,1722684646562,-500.0,0.00013698,2]
[334023637,1722684646572,-328.2996184,0.00013698,2]
[334023702,1722685832162,-253.1615998,0.00012491,2]
[334024224,1722685838236,-5887.326568,0.00012491,2]
[334024225,1722685838246,-167.221645,0.00012986,2]
[334024226,1722685838256,-2045.20163673,0.00013351,2]
[334024227,1722685838267,-1165.58539077,0.00013402,2]
[334024228,1722685838276,-300.0,0.00013425,2]
[334024229,1722685838285,-300.0,0.00013425,2]
[334024230,1722685838297,-500.0,0.00013429,2]
[334024231,1722685838307,-500.0,0.00013429,2]
[334024232,1722685838317,-20087.30900322,0.0001343,2]
[334024233,1722685838539,-21558.98680917,0.0001343,2]
[334024366,1722685840408,-8018.80888735,0.0001343,2]
[334024372,1722685840462,-1694.98,0.0001343,2]
[334024379,1722685840515,-28987.91530026,0.0001343,2]
[334024381,1722685840525,-1165.58539077,0.00013451,2]
[334024383,1722685840534,-367.8078729,0.00013453,2]
[334024386,1722685840545,-1165.58539077,0.000135,2]
[334024388,1722685840556,-1165.58539077,0.00013549,2]
[334024390,1722685840566,-1165.58539077,0.00013598,2]
[334024392,1722685840577,-1780.77,0.00013598,2]
[334024394,1722685840588,-2777.80474496,0.00013634,2]
[334024396,1722685840597,-200.0,0.00013673,2]
[334024398,1722685840607,-22368.8291856,0.00013677,2]
[334024400,1722685840616,-44737.6583712,0.00013678,2]
[334024402,1722685840626,-500.0,0.00013687,2]
[334024404,1722685840635,-500.0,0.00013687,2]
[334024406,1722685840645,-2774.36316935,0.00013688,5]
[334024408,1722685840654,-134212.975113,0.00013688,2]
[334024410,1722685840663,-500.0,0.00013697,2]
[334024412,1722685840672,-492.48,0.00013697,2]
[334024414,1722685840682,-1586.77630243,0.00013698,5]
[334024416,1722685840696,-171.41648367,0.00013698,2]
[334024418,1722685840705,-500.0,0.00013698,2]
[334024420,1722685840715,-500.0,0.00013698,2]
[334024422,1722685840726,-505.90119621,0.00013698,2]
[334024424,1722685840735,-501.05867794,0.00013698,2]
[334024426,1722685840744,-504.04210718,0.00013698,2]
[334024428,1722685840754,-500.0,0.00013698,2]
[334024430,1722685840766,-500.0,0.00013698,2]
[334024432,1722685840776,-500.0,0.00013698,2]
[334024434,1722685840785,-500.0,0.00013698,2]
[334024436,1722685840795,-505.72277134,0.00013698,2]
[334024437,1722685840804,-500.0,0.00013698,2]
[334024439,1722685840813,-176.439896,0.00013698,2]
[334024442,1722685840823,-497.17330972,0.00013698,2]
[334024447,1722685840933,-521.28259252,0.00013698,2]
[334024448,1722685840943,-500.0,0.00013698,2]
[334024449,1722685840954,-503.44149162,0.00013698,2]
[334024451,1722685840963,-500.0,0.00013698,2]
[334024453,1722685840975,-587.07673767,0.00013698,2]
[334024455,1722685840985,-506.00803671,0.00013698,2]
[334024457,1722685840994,-507.15484908,0.00013698,2]
[334024459,1722685841004,-500.0,0.00013698,2]
[334024461,1722685841014,-500.0,0.00013698,2]
[334024463,1722685841025,-500.0,0.00013698,2]
[334024465,1722685841034,-500.0,0.00013698,2]
[334024467,1722685841045,-500.0,0.00013698,2]
[334024469,1722685841054,-500.0,0.00013698,2]
[334024471,1722685841064,-500.0,0.00013698,2]
[334024473,1722685841073,-500.0,0.00013698,2]
[334024475,1722685841084,-500.0,0.00013698,2]
[334024477,1722685841093,-500.0,0.00013698,2]
[334024479,1722685841103,-500.0,0.00013698,2]
[334024481,1722685841112,-500.0,0.00013698,2]
[334024483,1722685841121,-500.0,0.00013698,2]
[334024485,1722685841131,-500.0,0.00013698,2]
[334024487,1722685841140,-500.0,0.00013698,2]
[334024489,1722685841150,-480.0,0.00013698,2]
[334024491,1722685841159,-500.0,0.00013698,2]
[334024493,1722685841169,-500.0,0.00013698,2]
[334024495,1722685841178,-500.0,0.00013698,2]
[334024497,1722685841188,-500.0,0.00013698,2]
[334024499,1722685841197,-500.0,0.00013698,2]
[334024501,1722685841206,-500.0,0.00013698,2]
[334024503,1722685841215,-500.0,0.00013698,2]
[334024506,1722685841225,-500.0,0.00013698,2]
[334024508,1722685841235,-500.0,0.00013698,2]
[334024510,1722685841246,-167.78020572,0.00013698,2]
[334024512,1722685841255,-248.5,0.00013698,2]
[334024514,1722685841264,-500.0,0.00013698,2]
[334024515,1722685841274,-500.0,0.00013698,2]
[334024517,1722685841283,-500.0,0.00013698,2]
[334024520,1722685841293,-500.0,0.00013698,2]
[334024522,1722685841304,-459.62580055,0.00013698,2]
[334024524,1722685841314,-500.0,0.00013698,2]
[334024526,1722685841325,-500.0,0.00013698,2]
[334024528,1722685841335,-189.14615912,0.00013698,2]
[334024530,1722685841345,-500.0,0.00013698,2]
[334024532,1722685841355,-500.0,0.00013698,2]
[334024534,1722685841366,-500.0,0.00013698,2]
[334024536,1722685841378,-500.0,0.00013698,2]
[334024539,1722685841390,-500.0,0.00013698,2]
[334024541,1722685841401,-500.0,0.00013698,2]
[334024543,1722685841412,-500.0,0.00013698,2]
[334024545,1722685841423,-500.0,0.00013698,2]
[334024547,1722685841433,-500.0,0.00013698,2]
[334024549,1722685841442,-500.0,0.00013698,2]
[334024551,1722685841451,-500.0,0.00013698,2]
[334024553,1722685841461,-500.0,0.00013698,2]
[334024555,1722685841470,-500.0,0.00013698,2]
[334024557,1722685841480,-500.0,0.00013698,2]
[334024559,1722685841489,-286.62751157,0.00013698,2]
[334024561,1722685841499,-500.0,0.00013698,2]
[334024563,1722685841508,-500.0,0.00013698,2]
[334024565,1722685841518,-500.0,0.00013698,2]
[334024567,1722685841528,-500.0,0.00013698,2]
[334024569,1722685841538,-500.0,0.00013698,2]
[334024571,1722685841548,-500.0,0.00013698,2]
[334024573,1722685841557,-500.0,0.00013698,2]
[334024574,1722685841566,-554.60123994,0.00013698,2]
[334024576,1722685841576,-500.0,0.00013698,2]
[334024577,1722685841586,-122.08071809,0.00013698,2]
[334024929,1722687041124,-194.444444,0.00012599,2]
[334024931,1722687041133,-194.444444,0.00012928,2]
[334024933,1722687041143,-165.886714,0.00012986,2]
[334024935,1722687041153,-150.112233,0.00013,2]
[334024937,1722687041164,-194.444444,0.00013256,2]
[334024939,1722687041174,-367.7699373,0.0001344,2]
[334024941,1722687041184,-4044.01079431,0.00013516,2]
[334024943,1722687041194,-500.0,0.00013687,2]
[334024945,1722687041204,-27.97429287,0.00013687,2]
[334024947,1722687041216,-272.02570713,0.00013687,2]
[334024950,1722687041227,-928.08110727,0.00013688,2]
[334025080,1722687043455,-1092.73794451,0.00013688,2]
[334025081,1722687043468,-306.24798982,0.00013688,2]
[334025094,1722687046610,-1085.04375266,0.00013688,2]
[334025117,1722687809799,247.11193287,0.00027,120]
[334025119,1722687810802,250.32428093,9.999e-05,2]
[334025125,1722688052338,154.77980433,9.999e-05,2]
[334025128,1722688150861,34173.43757543,0.000245,120]
[334025129,1722688152766,334.06,0.00025,60]
[334025211,1722688240734,-225.9410878,0.00012648,2]
[334025212,1722688240745,-165.638093,0.00012986,2]
[334025213,1722688240755,-300.0,0.00012999,2]
[334025214,1722688240770,-1000.0,0.00013,13]
[334025215,1722688240780,-1314.5208192,0.00013,2]
[334025221,1722688243604,-10828.93342939,0.00013,2]
[334025243,1722688247650,-319.11,0.00013,2]
[334025245,1722688669287,250.32428093,9.999e-05,2]
[334025246,1722689006930,251.52335369,9.999e-05,2]
[334025247,1722689249378,1000.0,0.00027,120]
[334025248,1722689283171,410.8,0.00027,120]
[334025313,1722689438569,-345.02496981,0.0001261,2]
[334025314,1722689438579,-4124.98968386,0.00012875,2]
[334025316,1722689438956,-552.12413512,0.00012875,2]
[334025317,1722689438966,-165.849482,0.00012986,2]
[334025319,1722689438976,-2553.81617029,0.00013,2]
[334025321,1722689438985,-300.0,0.00013199,2]
[334025322,1722689438995,-485.05067387,0.000132,2]
[334025323,1722689439004,-366.4812016,0.000132,2]
[334025324,1722689439015,-410.3790306,0.000135,2]
[334025325,1722689439025,-206.960494,0.000135,2]
[334025326,1722689439036,-413.816345,0.000135,2]
[334025327,1722689439047,-153.0,0.000135,2]
[334025328,1722689439058,-317.07136369,0.00013587,2]
[334025337,1722689442240,-2395.80167677,0.00013587,2]
[334025338,1722689442250,-1555.85736019,0.00013587,2]
[334025339,1722689442261,-294.23334832,0.00013587,2]
[334025340,1722689442271,-170.8671207,0.00013597,2]
[334025341,1722689442280,-170.86712069,0.00013598,2]
[334025342,1722689442291,-170.86712069,0.00013598,2]
[334025343,1722689442300,-2664.15163857,0.000136,5]
[334025344,1722689442310,-1093.84,0.000136,2]
[334025345,1722689442320,-153.0,0.000136,2]
[334025346,1722689442329,-153.0,0.000136,2]
[334025348,1722689442337,-106.5691352,0.000136,2]
[334025368,1722689443792,-46.4308648,0.000136,2]
[334025369,1722689443802,-242.2947,0.0001363,2]
[334025370,1722689443814,-200.0,0.00013673,2]
[334025371,1722689443825,-3485.94246509,0.00013678,2]
[334025395,1722689735520,931.0,0.00025,60]
[334025397,1722689902296,248.01,0.00027,120]
[334025499,1722690639042,-164.532805,0.00012626,2]
[334025500,1722690639054,-165.849482,0.00012986,2]
[334025501,1722690639064,-621.53610858,0.0001327,2]
[334025502,1722690639074,-345.02496982,0.00013277,2]
[334025503,1722690639084,-164.532805,0.00013284,2]
[334025504,1722690639093,-4111.69353181,0.00013411,2]
[334025505,1722690639104,-2373.76391042,0.00013585,2]
[334025506,1722690639113,-200.0,0.00013673,2]
[334025507,1722690639122,-300.0,0.00013684,2]
[334025508,1722690639132,-1332.07581928,0.00013685,5]
[334025509,1722690639142,-7334.24030109,0.00013685,2]
[334025578,1722690643076,-6026.72972601,0.00013685,2]
[334025581,1722690643087,-151.369583,0.00013685,2]
[334025583,1722690643098,-151.0,0.00013685,2]
[334025585,1722690643109,-151.0,0.00013685,2]
[334025587,1722690643121,-151.0,0.00013685,2]
[334025589,1722690643131,-151.0,0.00013685,2]
[334025592,1722690643141,-151.0,0.00013685,2]
[334025594,1722690643151,-151.0,0.00013685,2]
[334025597,1722690643161,-151.0,0.00013685,2]
[334025600,1722690643170,-151.0,0.00013685,2]
[334025602,1722690643179,-151.0,0.00013685,2]
[334025605,1722690643189,-151.0,0.00013685,2]
[334025609,1722690643199,-151.0,0.00013685,2]
[334025611,1722690643208,-151.0,0.00013685,2]
[334025613,1722690643218,-151.0,0.00013685,2]
[334025616,1722690643228,-151.0,0.00013685,2]
[334025619,1722690643237,-151.0,0.00013685,2]
[334025621,1722690643247,-151.0,0.00013685,2]
[334025624,1722690643256,-151.0,0.00013685,2]
[334025626,1722690643266,-151.0,0.00013685,2]
[334025628,1722690643281,-169.388094,0.00013685,2]
[334025630,1722690643291,-151.0,0.00013685,2]
[334025632,1722690643300,-151.0,0.00013685,2]
[334025634,1722690643309,-169.388094,0.00013685,2]
[334025635,1722690643318,-151.0,0.00013685,2]
[334025637,1722690643328,-169.388094,0.00013685,2]
[334025640,1722690643337,-151.0,0.00013685,2]
[334025642,1722690643348,-169.388094,0.00013685,2]
[334025644,1722690643361,-169.388094,0.00013685,2]
[334025646,1722690643370,-151.0,0.00013685,2]
[334025648,1722690643380,-151.0,0.00013685,2]
[334025650,1722690643390,-151.0,0.00013685,2]
[334025652,1722690643400,-169.388094,0.00013685,2]
[334025654,1722690643410,-203.678352,0.00013685,2]
[334025656,1722690643420,-169.388094,0.00013685,2]
[334025658,1722690643432,-169.388094,0.00013685,2]
[334025661,1722690643443,-169.388094,0.00013685,2]
[334025663,1722690643456,-169.388094,0.00013685,2]
[334025665,1722690643465,-151.444341,0.00013685,2]
[334025667,1722690643475,-151.0,0.00013685,2]
[334025669,1722690643486,-151.0,0.00013685,2]
[334025671,1722690643496,-151.0,0.00013685,2]
[334025673,1722690643506,-151.0,0.00013685,2]
[334025675,1722690643516,-151.0,0.00013685,2]
[334025678,1722690643530,-151.0,0.00013685,2]
[334025680,1722690643543,-151.0,0.00013685,2]
[334025682,1722690643554,-239.318396,0.00013685,2]
[334025684,1722690643565,-239.318396,0.00013685,2]
[334025686,1722690643575,-239.318396,0.00013685,2]
[334025689,1722690643587,-239.318396,0.00013685,2]
[334025691,1722690643599,-239.318396,0.00013685,2]
[334025693,1722690643609,-239.318396,0.00013685,2]
[334025695,1722690643624,-239.318396,0.00013685,2]
[334025698,1722690643635,-239.318396,0.00013685,2]
[334025700,1722690643646,-239.318396,0.00013685,2]
[334025702,1722690643655,-239.318396,0.00013685,2]
[334025704,1722690643666,-151.0,0.00013685,2]
[334025706,1722690643675,-151.0,0.00013685,2]
[334025708,1722690643687,-151.259361,0.00013685,2]
[334025710,1722690643700,-151.0,0.00013685,2]
[334025712,1722690643710,-151.0,0.00013685,2]
[334025714,1722690643719,-151.0,0.00013685,2]
[334025716,1722690643729,-151.0,0.00013685,2]
[334025719,1722690643739,-153.208445,0.00013685,2]
[334025721,1722690643750,-158.196123,0.00013685,2]
[334025723,1722690643761,-158.196123,0.00013685,2]
[334025725,1722690643772,-158.196123,0.00013685,2]
[334025727,1722690643791,-158.196123,0.00013685,2]
[334025729,1722690643800,-158.196123,0.00013685,2]
[334025731,1722690643809,-158.196123,0.00013685,2]
[334025733,1722690643818,-158.196123,0.00013685,2]
[334025735,1722690643828,-158.196123,0.00013685,2]
[334025737,1722690643837,-158.196123,0.00013685,2]
[334025739,1722690643846,-158.196123,0.00013685,2]
[334025741,1722690643855,-153.806402,0.00013685,2]
[334025743,1722690643864,-151.0,0.00013685,2]
[334025745,1722690643873,-151.0,0.00013685,2]
[334025747,1722690643882,-151.0,0.00013685,2]
[334025749,1722690643891,-151.0,0.00013685,2]
[334025751,1722690643901,-151.0,0.00013685,2]
[334025753,1722690643912,-151.0,0.00013685,2]
[334025754,1722690643924,-151.0,0.00013685,2]
[334025755,1722690643936,-449.783107,0.00013685,2]
[334025756,1722690643947,-449.783107,0.00013685,2]
[334025757,1722690643957,-449.783107,0.00013685,2]
[334025758,1722690643969,-449.783107,0.00013685,2]
[334025759,1722690643979,-449.783107,0.00013685,2]
[334025760,1722690643989,-449.783107,0.00013685,2]
[334025761,1722690643999,-449.783107,0.00013685,2]
[334025762,1722690644011,-449.783107,0.00013685,2]
[334025763,1722690644022,-449.783107,0.00013685,2]
[334025764,1722690644032,-449.783107,0.00013685,2]
[334025765,1722690644042,-151.0,0.00013685,2]
[334025766,1722690644052,-151.0,0.00013685,2]
[334025767,1722690644062,-151.0,0.00013685,2]
[334025768,1722690644071,-151.0,0.00013685,2]
[334025770,1722690644081,-151.0,0.00013685,2]
[334025772,1722690644090,-151.0,0.00013685,2]
[334025774,1722690644100,-151.0,0.00013685,2]
[334025776,1722690644110,-151.0,0.00013685,2]
[334025778,1722690644119,-268.590295,0.00013685,2]
[334025780,1722690644129,-268.590295,0.00013685,2]
[334025782,1722690644139,-268.590295,0.00013685,2]
[334025784,1722690644148,-268.590295,0.00013685,2]
[334025786,1722690644158,-268.590295,0.00013685,2]
[334025788,1722690644168,-268.590295,0.00013685,2]
[334025790,1722690644178,-268.590295,0.00013685,2]
[334025792,1722690644190,-268.590295,0.00013685,2]
[334025794,1722690644200,-268.590295,0.00013685,2]
[334025796,1722690644210,-268.590295,0.00013685,2]
[334025798,1722690644220,-268.590295,0.00013685,2]
[334025800,1722690644229,-268.590295,0.00013685,2]
[334025802,1722690644239,-268.590295,0.00013685,2]
[334025804,1722690644250,-268.590295,0.00013685,2]
[334025806,1722690644260,-151.0,0.00013685,2]
[334025808,1722690644270,-151.0,0.00013685,2]
[334025810,1722690644282,-151.0,0.00013685,2]
[334025812,1722690644291,-151.0,0.00013687,2]
[334025814,1722690644301,-151.0,0.00013687,2]
[334025816,1722690644310,-151.0,0.00013687,2]
[334025818,1722690644318,-151.0,0.00013687,2]
[334025820,1722690644328,-151.0,0.00013687,2]
[334025822,1722690644338,-151.389932,0.00013687,2]
[334025824,1722690644348,-151.0,0.00013687,2]
[334025826,1722690644360,-151.0,0.00013687,2]
[334025828,1722690644370,-169.388094,0.00013687,2]
[334025830,1722690644381,-169.388094,0.00013687,2]
[334025832,1722690644391,-169.388094,0.00013687,2]
[334025834,1722690644402,-169.388094,0.00013687,2]
[334025836,1722690644413,-239.318396,0.00013687,2]
[334025838,1722690644423,-239.318396,0.00013687,2]
[334025840,1722690644432,-239.318396,0.00013687,2]
[334025842,1722690644442,-239.318396,0.00013687,2]
[334025844,1722690644453,-158.196123,0.00013687,2]
[334025846,1722690644463,-158.196123,0.00013687,2]
[334025848,1722690644472,-158.196123,0.00013687,2]
[334025850,1722690644482,-158.196123,0.00013687,2]
[334025851,1722690644492,-204.919694,0.00013687,2]
[334025854,1722690644503,-449.783107,0.00013687,2]
[334025856,1722690644512,-449.783107,0.00013687,2]
[334025857,1722690644522,-500.0,0.00013687,2]
[334025858,1722690644533,-500.0,0.00013687,2]
[334025859,1722690644543,-449.783107,0.00013687,2]
[334025860,1722690644552,-449.783107,0.00013687,2]
[334025861,1722690644562,-151.0,0.00013687,2]
[334025862,1722690644571,-151.0,0.00013687,2]
[334025863,1722690644581,-268.590295,0.00013687,2]
[334025864,1722690644591,-268.590295,0.00013687,2]
[334025865,1722690644600,-268.590295,0.00013687,2]
[334025866,1722690644612,-268.590295,0.00013687,2]
[334025867,1722690644623,-151.0,0.00013688,2]
[334025868,1722690644635,-151.0,0.00013688,2]
[334025869,1722690644646,-151.0,0.00013688,2]
[334025870,1722690644659,-186.986388,0.00013688,2]
[334025872,1722690644670,-151.0,0.00013688,2]
[334025873,1722690644679,-151.0,0.00013688,2]
[334025874,1722690644692,-151.0,0.00013688,2]
[334025875,1722690644702,-151.0,0.00013688,2]
[334025877,1722690644712,-151.0,0.00013688,2]
[334025879,1722690644722,-151.0,0.00013688,2]
[334025881,1722690644732,-264.232269,0.00013688,2]
[334025883,1722690644741,-151.0,0.00013688,2]
[334025885,1722690644751,-151.0,0.00013688,2]
[334025887,1722690644761,-151.0,0.00013688,2]
[334025889,1722690644772,-169.388094,0.00013688,2]
[334025891,1722690644782,-169.388094,0.00013688,2]
[334025893,1722690644792,-169.388094,0.00013688,2]
[334025895,1722690644802,-164.90895744,0.00013688,2]
[334026483,1722690839285,500.0,0.00027,120]
[334026484,1722691265872,154.0,0.00027,120]
[334026485,1722691315059,500.0,0.00025,60]
[334026543,1722691833485,-788.0284244,0.00012472,2]
[334026545,1722691833495,-298.45380381,0.00012563,2]
[334026706,1722691838115,-3980.53247009,0.00012563,2]
[334026707,1722691838125,-166.335277,0.00012986,2]
[334026708,1722691838134,-4318.56811978,0.00013321,2]
[334026709,1722691838144,-300.0,0.00013595,2]
[334026710,1722691838153,-500.0,0.00013687,2]
[334026711,1722691838163,-500.0,0.00013687,2]
[334026712,1722691838172,-266.49211191,0.00013688,5]
[334026874,1722691840295,-399.54579773,0.00013688,5]
[334026876,1722691840306,-151.0,0.00013688,2]
[334026878,1722691840316,-151.0,0.00013688,2]
[334026880,1722691840326,-151.0,0.00013688,2]
[334026882,1722691840336,-151.0,0.00013688,2]
[334026884,1722691840345,-151.0,0.00013688,2]
[334026886,1722691840355,-151.0,0.00013688,2]
[334026888,1722691840364,-151.0,0.00013688,2]
[334026890,1722691840374,-151.0,0.00013688,2]
[334026892,1722691840383,-151.0,0.00013688,2]
[334026894,1722691840393,-151.0,0.00013688,2]
[334026896,1722691840403,-991.4981129,0.00013688,2]
[334026899,1722691840415,-7575.02988,0.00013688,2]
[334027161,1722692830178,-166.335277,0.00012986,2]
[334027162,1722692830201,-367.7699373,0.0001331,2]
[334027163,1722692830224,-5313.02250689,0.00013373,2]
[334027164,1722692830245,-2133.0926598,0.00013588,2]
[334027165,1722692830266,-1714.80927816,0.00013598,2]
[334027166,1722692830288,-300.0,0.00013598,2]
[334027167,1722692830309,-594.0,0.000136,2]
[334027168,1722692830337,-185.43559521,0.00013673,2]
[334027169,1722692830358,-225.72762806,0.00013673,2]
[334027170,1722692830379,-200.0,0.00013673,2]
[334027171,1722692830400,-200.0,0.00013673,2]
[334027172,1722692830422,-151.02533888,0.00013673,2]
[334027173,1722692830451,-333.01895482,0.00013687,5]
[334027174,1722692830474,-151.0,0.00013687,2]
[334027175,1722692830497,-176.499017,0.00013687,2]
[334027176,1722692830520,-176.499017,0.00013687,2]
[334027177,1722692830545,-151.0,0.00013687,2]
[334027178,1722692830570,-3028.43,0.00013687,2]
[334027179,1722692830594,-3028.43,0.00013687,2]
[334027180,1722692830618,-3028.43,0.00013687,2]
[334027181,1722692830641,-3028.43,0.00013687,2]
[334027182,1722692830666,-421.317526,0.00013687,2]
[334027183,1722692830689,-421.317526,0.00013687,2]
[334027184,1722692830712,-9677.06368089,0.00013688,2]
[334027185,1722692830736,-2886.2773164,0.00013688,2]
[334027186,1722692830759,-1492.75012023,0.00013688,2]
[334027187,1722692830781,-151.0,0.00013688,2]
[334027188,1722692830803,-151.0,0.00013688,2]
[334027189,1722692830824,-151.0,0.00013688,2]
[334027190,1722692830844,-151.0,0.00013688,2]
[334027191,1722692830865,-151.0,0.00013688,2]
[334027192,1722692830887,-151.0,0.00013688,2]
[334027193,1722692830909,-161.757577,0.00013688,2]
[334027194,1722692830929,-161.757577,0.00013688,2]
[334027195,1722692830950,-161.757577,0.00013688,2]
[334027196,1722692830970,-161.757577,0.00013688,2]
[334027197,1722692830992,-161.757577,0.00013688,2]
[334027198,1722692831014,-161.757577,0.00013688,2]
[334027199,1722692831035,-151.0,0.00013688,2]
[334027200,1722692831058,-151.0,0.00013688,2]
[334027201,1722692831081,-180.386559,0.00013688,2]
[334027202,1722692831103,-180.386559,0.00013688,2]
[334027203,1722692831125,-180.386559,0.00013688,2]
[334027204,1722692831146,-180.386559,0.00013688,2]
[334027205,1722692831170,-180.386559,0.00013688,2]
[334027206,1722692831196,-180.386559,0.00013688,2]
[334027207,1722692831221,-176.499017,0.00013688,2]
[334027208,1722692831244,-176.499017,0.00013688,2]
[334027209,1722692831269,-176.499017,0.00013688,2]